Cogmind - Beta 17.1 @@@ ROGUE MODE // 2026.09.09 @ 00:18:42 Player: TheSkyeDoctor Result: Destroyed by S-27 Virus with Autogun Performance ------------- Evolutions (4) 2000 Regions Visited (4) 800 Robots Destroyed (35) 175 Value Destroyed (1003) 1003 Prototype IDs (20) 400 Alien Tech Used (0) 0 Bonus (948) 948 TOTAL SCORE: 5326 Bonus ------- Follower Combat Kills 148 Registered with UFD 300 Met Optimus in HQ 500 Cogmind --------- Core Integrity 0/850 Matter 157/300 Energy 87/100 System Corruption 0% Temperature Cool (0) Movement Core (100) Ox1 Location -6/Factory Parts ------- > --- POWER (1) -------- (None) > --- PROPULSION (4) --- Armored Wheel > --- UTILITY (8) ------ Reaction Control System > --- WEAPON (2) ------- Powered Hammer > --- INVENTORY (5) ---- Energy Well (350) Large Matter Pod (0) Power Bank Plasma Rifle Datajack Peak State ------------ > --- POWER ------------ Fission Core > --- PROPULSION ------- Improved Aluminum Leg Carbon-fiber Leg Carbon-fiber Leg Improved Titanium Leg > --- UTILITY ---------- Scrap Suit High-capacity Storage Unit Energy Well Advanced Terrain Scanner Improved Terrain Scan Processor Force Field Hacking Suite > --- WEAPON ----------- Barrage Gun Magnetic Acceleration Cannon > --- INVENTORY -------- Ion Engine Improved Ion Engine Carbon-fiber Leg Carbon-fiber Leg Scrap Suit Large Matter Pod Targeting Computer Core Shielding Hacking Suite Improved System Shield Power Bank Assault Cannon Proton Missile Launcher Mini Grenade Launcher Datajack Heavy Mace [Rating: 60] Favorites ----------- Power Ion Engine Engine Ion Engine Power Core Fission Core Propulsion Aluminum Leg Leg Aluminum Leg Wheel Armored Wheel Utility Hacking Suite Device Scrap Suit Storage High-capacity Storage Unit Processor Improved Terrain Scan Processor Hackware Hacking Suite Protection Core Shielding Weapon Barrage Gun Energy Gun EM Pulse Gun Energy Cannon Subdweller Beam Cannon Ballistic Gun Barrage Gun Ballistic Cannon Magnetic Acceleration Cannon Launcher Mini Grenade Launcher Impact Weapon Heavy Mace Build | -11 -10 -10 -9 -6 ------- Run | Yrd Mat Sub Scr Fac Slots Evolved 8 | . . . . 8 Power . | . . . . . Propulsion 2 | . . . . 2 Utility 6 | . . . . 6 Weapon . | . . . . . Parts Attached 43 | 8 . 6 7 22 Power 5 | 2 . . 1 2 Engine 3 | 2 . . 1 . Core 2 | . . . . 2 Reactor . | . . . . . Propulsion 9 | 2 . . 2 5 Treads . | . . . . . Leg 8 | 2 . . 2 4 Wheel 1 | . . . . 1 Hover . | . . . . . Flight . | . . . . . Utility 17 | 2 . 2 3 10 Device 7 | 1 . 1 . 5 Storage 4 | 1 . 1 2 . Processor 2 | . . . . 2 Hackware 3 | . . . 1 2 Protection 1 | . . . . 1 Artifact . | . . . . . Weapon 12 | 2 . 4 1 5 Energy Gun 2 | 2 . . . . Energy Cannon 1 | . . 1 . . Ballistic Gun 3 | . . 3 . . Ballistic Cannon 2 | . . . 1 1 Launcher 2 | . . . . 2 Special Weapon . | . . . . . Impact Weapon 2 | . . . . 2 Slashing Weapon . | . . . . . Piercing Weapon . | . . . . . Special Melee Weapon . | . . . . . Unidentified Prototypes . | . . . . . Parts Lost 24 | . . 2 . 22 Power 3 | . . . . 3 Propulsion 6 | . . . . 6 Utility 10 | . . 1 . 9 Weapon 5 | . . 1 . 4 Highest Loss Streak 22 | . . 1 . 22 To Critical Strikes . | . . . . . Average Backups 10 | . 1 7 13 12 Power 1 | . 1 1 1 1 Propulsion . | . . . . . Utility 5 | . . 1 6 5 Weapon 3 | . . 3 4 3 Tool/Special . | . . . . . Unused Backups 26 | . . . 14 12 Power 2 | . . . 1 1 Propulsion 6 | . . . 4 2 Utility 12 | . . . 6 6 Weapon 5 | . . . 3 2 Tool/Special 1 | . . . . 1 Average Slot Usage (%) 94 | . 100 97 99 73 Engine 12 | . 14 14 14 3 Leg 26 | . 28 28 28 17 Device 3 | . 14 2 . 15 Storage 16 | . 14 22 15 10 Hackware 7 | . . . 12 5 Energy Gun 3 | . 28 9 . . Energy Cannon 1 | . . 3 . . Ballistic Gun 11 | . . 14 14 4 Ballistic Cannon 8 | . . . 13 4 Peak Build Rating 60 | 7 7 12 27 60 Average Rating 22 | 6 7 10 23 45 On Entrance 10 | . 7 7 12 26 Avg Prop Armor Cover (%) 21 | . . . . 21 Naked Turns 58 | . . . . 58 Heaviest Build 78 | 15 15 24 58 78 Greatest Support 63 | 20 20 20 33 63 Greatest Overweight (x) 4 | 3 . 1 1 4 Average Overweight (x) . | . . . . . Largest Inventory Capacity 20 | 8 8 8 20 20 Average Capacity 14 | 7 8 8 17 17 Most Carried 20 | 1 3 8 20 18 Average Carried 11 | . 1 7 14 13 Final Capacity 20 | 8 8 8 20 5 Final Carried 19 | 1 3 8 19 5 Scrap Suit Usage (%) 12 | . . . . 81 Parts Cannibalized 1 | . . . . 1 Class Distribution -------------------- 69% | Mutant 30% | Derelict-Mutant Dominant Class ---------------- Mutant | -10/Materials Mutant | -10/Subcaves Mutant | -9/Scraptown Mutant | -6/Factory Resources | -11 -10 -10 -9 -6 ----------- Run | Yrd Mat Sub Scr Fac Matter Collected 1193 | 280 76 238 70 529 Remotely . | . . . . . Salvage Created 1358 | 268 29 195 . 866 Parts 57 | 27 2 9 . 19 Haulers Intercepted . | . . . . . Recyclers Shooed 5 | . . . . 5 Parts Field Recycled . | . . . . . Retrieved Matter . | . . . . . Parts Self-Destructed 8 | . . 8 . . Prevented . | . . . . . Parts Restored . | . . . . . Kills | -11 -10 -10 -9 -6 ------- Run | Yrd Mat Sub Scr Fac Combat Hostiles Destroyed 20 | . 2 5 . 13 Melee 1 | . . . . 1 Guns 11 | . 2 5 . 4 Cannons 4 | . . . . 4 AOE 4 | . . . . 4 Classes Destroyed 9 | 3 1 2 . 3 Worker 2 | 1 . . . 1 Builder 1 | . . . . 1 Tunneler 9 | 9 . . . . Recycler 3 | 1 . . . 2 Swarmer 2 | . 2 . . . Grunt 11 | . . . . 11 Sentry 1 | . . 1 . . Hunter 2 | . . . . 2 Subdweller 4 | . . 4 . . Best Kill Streak 8 | 5 1 2 . 8 Combat Bots Only 3 | . 1 2 . 3 Max Kills in Single Turn 2 | 2 1 1 . 2 Gunslinging . | . . . . . Exploded 2 | . . . . 2 Melee 1 | . . . . 1 Uniques/NPCs Destroyed . | . . . . . Combat | -11 -10 -10 -9 -6 -------- Run | Yrd Mat Sub Scr Fac Hostile Shots Fired 328 | . 4 20 . 304 Missed 118 | . 2 6 . 110 Hits 210 | . 2 14 . 194 Projectile 210 | . 2 14 . 194 Critical Strikes 3 | . . 1 . 2 Damage Taken 3234 | 17 23 313 . 2881 Core 940 | . . 87 . 853 Absorbed by Shields 279 | . . . . 279 Redirected to Shielding 52 | . . . . 52 Regen/Repaired (Parts) 7 | . . . . 7 Core Remaining (%) 82 | 100 . . 65 . Volleys Fired 105 | 21 4 25 . 55 Largest 2 | 2 2 2 . 2 Hottest 108 | 90 90 108 . 72 Shots Fired 197 | 42 7 49 . 99 Gun 139 | 42 7 46 . 44 Cannon 48 | . . 3 . 45 Launcher 10 | . . . . 10 Special . | . . . . . Kinetic 114 | . . 25 . 89 Thermal 34 | 21 3 10 . . Explosive 8 | . . . . 8 Electromagnetic 41 | 21 4 14 . 2 Robot Hit Streak 14 | 7 3 8 . 14 Robot Miss Streak 4 | 2 4 2 . 3 Penetration Max . | . . . . . Secondary Targets . | . . . . . Shots Hit Robots 121 | 24 3 25 . 69 Core Hits 65 | 11 2 9 . 43 Critical Kills 1 | . . . . 1 Critical Parts Destroyed . | . . . . . Critical Strikes 5 | 2 . . . 3 Burn 1 | 1 . . . . Blast 2 | . . . . 2 Corrupt 1 | 1 . . . . Smash 1 | . . . . 1 Melee Attacks 15 | . . . . 15 Impact 15 | . . . . 15 Slashing . | . . . . . Piercing . | . . . . . Sneak Attacks 1 | . . . . 1 Combat Hostiles . | . . . . . Follow-up Attacks . | . . . . . Damage Inflicted 3695 | 365 62 290 . 2978 Guns 1241 | 329 62 290 . 560 Cannons 771 | . . . . 771 Explosions 1399 | 36 . . . 1363 Melee 284 | . . . . 284 Ramming . | . . . . . Kinetic 1520 | . . 189 . 1331 Thermal 312 | 138 38 37 . 99 Explosive 850 | . . . . 850 Electromagnetic 729 | 227 24 64 . 414 Impact 284 | . . . . 284 Slashing . | . . . . . Piercing . | . . . . . Highest Corruption 1 | . 1 1 . . Average Corruption 1 | . 1 1 . . Corruption Purged . | . . . . . Corruption Blocked . | . . . . . Effects 9 | . 1 8 . . Message Errors 2 | . . 2 . . Matter Fused 2 | . . 2 . . Heat Flow Errors 1 | . . 1 . . Energy Discharges 3 | . 1 2 . . Data Loss (minor) 1 | . . 1 . . Overload Shots . | . . . . . Overflow Damage 78 | . . . . 78 Projectiles 16 | . . . . 16 Explosions 62 | . . . . 62 Melee . | . . . . . Knockbacks 8 | . . . . 8 Impact 1 | . . . . 1 Kinetic 7 | . . . . 7 Secondary . | . . . . . Self-Inflicted Damage 247 | 17 . . . 230 Shots 10 | 1 . . . 9 Rammed . | . . . . . Targets Rammed . | . . . . . Kicked . | . . . . . Crushed . | . . . . . Highest Temperature 162 | 162 60 93 . 79 Average Temperature 35 | 58 27 32 . 16 Received Heat Transfer 878 | . . 81 . 797 Siege Activations . | . . . . . Martial Activations . | . . . . . Shielding Activations . | . . . . . Robots Disrupted . | . . . . . Combat Hostiles . | . . . . . Robots Corrupted . | . . . . . Combat Hostiles . | . . . . . Parts Fried 2 | 2 . . . . Impact Corruptions . | . . . . . Robots Melted . | . . . . . Combat Hostiles . | . . . . . Parts Melted 3 | 2 . 1 . . Heat Transferred 892 | 420 111 111 . 250 Parts Sabotaged . | . . . . . Parts Stolen . | . . . . . Parts Stripped . | . . . . . Power Chain Reactions 3 | 1 . . . 2 Alert | -11 -10 -10 -9 -6 ------- Run | Yrd Mat Sub Scr Fac Maximum Alert Level . | . . . . . Low Security (%) 100 | 100 100 . . 100 Level 1 . | . . . . . Level 2 . | . . . . . Level 3 . | . . . . . Level 4 . | . . . . . Level 5 . | . . . . . High Security . | . . . . . Max Security . | . . . . . Peak Influence 130 | 15 33 . . 130 Initial 3 | . 3 . . . Average 34 | 1 6 . . 52 Influence Increases 718 | 55 50 20 . 593 Destroy 0b10 Robot/C 400 | . 40 20 . 340 Destroy 0b10 Robot/NC 75 | 55 . . . 20 Destroy Leader 70 | . 10 . . 60 Allied During Kill 38 | . . . . 38 Destroy Structure 30 | . . . . 30 Partial Spotted 15 | . . . . 15 Lose Combat Pursuer 90 | . . . . 90 Influence Decreases 656 | 50 55 20 . 531 Entered New Map 2 | . 2 . . . Time Decay 419 | 50 53 20 . 296 Lost Part 215 | . . . . 215 Lost Ally 20 | . . . . 20 Squads Dispatched 9 | . 1 . . 8 Investigation 5 | . . . . 5 Extermination 1 | . . . . 1 Reinforcement 2 | . 1 . . 1 Assault . | . . . . . Garrison 1 | . . . . 1 Intercept . | . . . . . Searches Triggered . | . . . . . Construction Impeded 1 | . . . . 1 Haulers Reinforced . | . . . . . Active Scanning Responses . | . . . . . Cargo Convoy Interrupts . | . . . . . Stealth | -11 -10 -10 -9 -6 --------- Run | Yrd Mat Sub Scr Fac Distress Signals . | . . . . . Communications Jammed . | . . . . . Distress Signals . | . . . . . Times Spotted 55 | . 9 7 . 39 Peak Tracking Total 9 | . 4 2 . 9 Tactical Retreats 4 | . . . . 4 Traps | -11 -10 -10 -9 -6 ------- Run | Yrd Mat Sub Scr Fac Traps Triggered 1 | . 1 . . . Indirectly . | . . . . . Trap Hack Attempts . | . . . . . Triggered . | . . . . . Disarmed . | . . . . . Reprogrammed . | . . . . . Reused . | . . . . . Traps Extracted . | . . . . . Installed . | . . . . . Triggered . | . . . . . Machines | -11 -10 -10 -9 -6 ---------- Run | Yrd Mat Sub Scr Fac Machines Disabled 1 | . . 1 . . Max in Single Turn 1 | . . 1 . . Machines Repaired . | . . . . . Machines Dismantled . | . . . . . Machines Sabotaged . | . . . . . Overloaded Fab Kills . | . . . . . Hacking | -11 -10 -10 -9 -6 --------- Run | Yrd Mat Sub Scr Fac Machines Accessed 13 | . . 3 4 6 Terminals 1 | . . . . 1 Fabricators . | . . . . . Repair Stations . | . . . . . Recycling Units 5 | . . . . 5 Scanalyzers . | . . . . . Garrison Access . | . . . . . Total Hacks 21 | . . 6 7 8 Successful 19 | . . 6 7 6 Failed 2 | . . . . 2 Catastrophic . | . . . . . Database Lockouts . | . . . . . Manual 8 | . . . . 8 Terminals 3 | . . . . 3 Fabricators . | . . . . . Repair Stations . | . . . . . Recycling Units 5 | . . . . 5 Scanalyzers . | . . . . . Garrison Access . | . . . . . Terminal Hacks 13 | . . 6 7 . Record 10 | . . 4 6 . Open Door 1 | . . 1 . . Proto ID Catalog 2 | . . 1 1 . Fabricator Hacks . | . . . . . Repair Station Hacks . | . . . . . Recycling Unit Hacks . | . . . . . Scanalyzer . | . . . . . Garrison Access Hacks . | . . . . . Unauthorized Hacks 6 | . . . . 6 Terminals 1 | . . . . 1 Botnet 1 | . . . . 1 Fabricators . | . . . . . Repair Stations . | . . . . . Recycling Units 5 | . . . . 5 Fedlink 5 | . . . . 5 Scanalyzers . | . . . . . Garrison Access . | . . . . . Data Cores Recovered . | . . . . . Used . | . . . . . Hacking Detections 1 | . . . . 1 Full Trace Events . | . . . . . Feedback Events . | . . . . . Feedback Blocked . | . . . . . Robot Schematics Acquired . | . . . . . Robots Built . | . . . . . Authchips . | . . . . . Time . | . . . . . Total Robot Build Rating . | . . . . . Part Schematics Acquired . | . . . . . Parts Built . | . . . . . Authchips . | . . . . . Time . | . . . . . Total Part Build Rating . | . . . . . Part Studies Acquired . | . . . . . Parts Repaired . | . . . . . Time . | . . . . . Parts Recycled . | . . . . . Recycled Matter . | . . . . . Retrieved Matter . | . . . . . Retrieved Components . | . . . . . Parts Scanalyzed . | . . . . . Part Schematics Acquired . | . . . . . Parts Damaged . | . . . . . Bothacking | -11 -10 -10 -9 -6 ------------ Run | Yrd Mat Sub Scr Fac Used RIF Installer . | . . . . . Robots Hacked . | . . . . . Non-combat . | . . . . . Combat . | . . . . . Robot Hacks Applied . | . . . . . Relay Couplers Released . | . . . . . Fabnet Peak Effective % . | . . . . . Robots Rewired . | . . . . . Allies Hacked . | . . . . . Hacks Repelled . | . . . . . Allies | -11 -10 -10 -9 -6 -------- Run | Yrd Mat Sub Scr Fac Total Allies 1 | . . . 1 . Largest Group 1 | . . . 1 1 Highest-Rated Group 56 | . . . 56 56 Highest-Rated Ally 56 | . . . 56 56 Initial UFD Resources 23 | . . . . 23 Total Orders . | . . . . . Ally Attacks 45 | . . . . 45 Total Damage 617 | . . . . 617 Kills 4 | . . . . 4 Allies Corrupted . | . . . . . Allies Melted . | . . . . . Intel | -11 -10 -10 -9 -6 ------- Run | Yrd Mat Sub Scr Fac Active Infowar (turns) 1406 | 161 255 232 . 758 Optics 163 | . . 163 . . Terrain 758 | . . . . 758 Seismic 485 | 161 255 69 . . Robot Analysis Total . | . . . . . Derelict Logs Recovered 2 | . . . 2 . Drone Launches . | . . . . . Drone Recoveries . | . . . . . Exploration | -11 -10 -10 -9 -6 ------------- Run | Yrd Mat Sub Scr Fac Turns Passed 5962 | 268 255 1219 3280 940 Spaces Moved 3425 | 167 202 824 1770 462 Core 188 | 16 . . . 172 Treads . | . . . . . Legs 3231 | 151 202 824 1770 284 Wheels 6 | . . . . 6 Hover . | . . . . . Flight . | . . . . . Fastest Speed 50 | 50 120 120 125 50 Average Speed 159 | 116 120 135 181 151 Slowest Speed 400 | 200 120 190 195 400 Overloaded Moves . | . . . . . Propulsion Burnouts . | . . . . . Robots Hopped . | . . . . . Potential Cave-ins 4 | . . . . 4 Cave-ins Triggered . | . . . . . Exploration Rate (%) 39 | 5 47 41 82 20 Regions Visited 4 Branch Regions 2 Pre-discovered Areas 3 | . . 1 1 1 Known Exits Taken . | . . . . . Unknown Exits Taken 4 | 1 1 1 1 . Scrap Searched 9 | . . 2 7 . Spaces Dug 7 | . . . . 7 Terrain Destroyed 32 | . . . . 32 Melee 7 | . . . . 7 Projectile 9 | . . . . 9 AOE 16 | . . . . 16 Terrain Rammed . | . . . . . Walls Destroyed . | . . . . . Machines Disabled . | . . . . . Actions | -11 -10 -10 -9 -6 --------- Run | Yrd Mat Sub Scr Fac Total 3716 | 195 207 884 1847 583 Wait 45 | . . 17 17 11 Move 3421 | 166 201 823 1769 462 Hop . | . . . . . Pick Up 44 | . 2 8 28 6 Fast Attach 17 | 7 . 2 2 6 Attach 19 | . . 1 . 18 Detach 4 | . . 1 1 2 Swap 10 | 1 . 3 5 1 Drop 36 | . . 4 25 7 Fire 105 | 21 4 25 . 55 Melee 15 | . . . . 15 Ram . | . . . . . Kick . | . . . . . Crush . | . . . . . Escape Stasis . | . . . . . Rewire . | . . . . . Trap . | . . . . . Miscellaneous . | . . . . . Route ------- -11/Scrapyard -10/Materials -10/Subcaves -9/Scraptown -6/Factory History --------- Turn | Location | Event 27 | -11/Scrapyard | Discovered new exit (range 13) 269 | -11/Scrapyard | Entered Materials 270 | -10/Materials | Met a group of wandering Federalists 308 | -10/Materials | Build established: Mutant 514 | -10/Materials | Discovered new exit (range 9) 524 | -10/Materials | Entered Subcaves 525 | -10/Subcaves | Continued accompanying wandering Federalists (5) 525 | -10/Subcaves | Approached by a straggling Scientist 535 | -10/Subcaves | A swath of the cavern ceiling suddenly collapsed 642 | -10/Subcaves | Shifting Twisted Machinery released Sub. Beam Cannon 701 | -10/Subcaves | Shifting Twisted Machinery released Barrage Gun 731 | -10/Subcaves | Wandering Federalist uncovered a shortcut to Scraptown 1043 | -10/Subcaves | Visited Clippyterm 1046 | -10/Subcaves | Learned location of Deep Caves (-6) 1074 | -10/Subcaves | Disturbed a concealed Subdweller 1403 | -10/Subcaves | Visited 4L-MR0's lab 1429 | -10/Subcaves | Found Power Bank 1474 | -10/Subcaves | Shifting Twisted Machinery released Sub. Laser 1484 | -10/Subcaves | Shifting Twisted Machinery released Sub. Power Source 1743 | -10/Subcaves | Entered Scraptown 1743 | -9/Scraptown | System corruption cleaned by C-Scrubber 2025 | -9/Scraptown | Scanned Subdweller tech in exchange for log data 2027 | -9/Scraptown | Learned location of 1 exit from Research 2029 | -9/Scraptown | Learned location of Zion (-6) 2240 | -9/Scraptown | Visited Fellowship of the Rings 2260 | -9/Scraptown | Visited Bundlers 2461 | -9/Scraptown | Visited Cyclists 2502 | -9/Scraptown | Visited Assassins FH 2654 | -9/Scraptown | Visited UFD Registry 2654 | -9/Scraptown | Registered with UFD as "Thermocycle" 2680 | -9/Scraptown | Visited SPCMW 2715 | -9/Scraptown | Visited Symbiants 2814 | -9/Scraptown | Entered Cyclist Reading Room 2939 | -9/Scraptown | Visited Shadow of the Wyrm 3064 | -9/Scraptown | Visited Science Testing Area 3091 | -9/Scraptown | Visited Botcube Research 3101 | -9/Scraptown | Found Botcube 3143 | -9/Scraptown | Visited Science Guys 3223 | -9/Scraptown | Visited Scrap Suit Storage 3234 | -9/Scraptown | Found Scrap Suit 3237 | -9/Scraptown | Found Scrap Suit 3394 | -9/Scraptown | Visited DA-N13 Charitable Foundation 3416 | -9/Scraptown | Found DCF Scrap (28 items) 3876 | -9/Scraptown | Visited Scrapoid Research Area 3935 | -9/Scraptown | Visited Derelict Rescue Squad 3980 | -9/Scraptown | Build established: Derelict-Mutant 4770 | -9/Scraptown | Botcube activated 4792 | -9/Scraptown | Botcube completed mutation into treaded form, armed with 2 guns 4831 | -9/Scraptown | Found Scrap Suit 4899 | -9/Scraptown | Met Optimus 4899 | -9/Scraptown | Accepted into 0bPrime 5010 | -9/Scraptown | Discovered new exit (range 5) 5023 | -9/Scraptown | Entered Factory 5023 | -6/Factory | Accompanied by 1 ally 5023 | -6/Factory | Evolved 8 slots: Propulsion x2, Utility x6 5100 | -6/Factory | Loaded intel: 8 recycling unit locations 5166 | -6/Factory | Learned location of Protoforge (-2) 5769 | -6/Factory | Garrison activated, responded to threat 5806 | -6/Factory | Core integrity fell below 50% 5838 | -6/Factory | Build established: Mutant 5848 | -6/Factory | Lost 22 parts (3p6n9u4w) 5899 | -6/Factory | Core integrity fell below 20% 5963 | -6/Factory | Destroyed by S-27 Virus with Autogun Last Messages --------------- see you there. You're truly one of us now. We are 0bPrime. UFD!SANITIZING UFD!... 05922_ ALERT: Suspicious activity at Recycling Unit F004. Dispatching Investigation squad. 05925_ Acquired Plasma Rifle. 05928_ Dropped Hvy. Mace. 05929_ Acquired Powered Hammer. 05931_ Acquired Arm. Wheel. 05933_ Acquired Imp. Cooling System. 05936_ R-10 Processor collects Hvy. Mace. 05939_ Dropped Imp. Cooling System. 05940_ ALERT: Security rotation in progress. 05940_ R-10 Processor collects Imp. Cooling System. 05946_ K-01 Serf cleans the Matter Pump. 05951_ S-27 Virus destroyed. 05951_ K-01 Serf cleans the Matter Pump. 05961_ Acquired Reaction Control System. Map ----- +----------------------------------------------------+ | ?????????????????????????????????????????????????? | | ?????????????????????????????????????????????????? | | ?????????????????????????????????????????????????? | | ?????????????????????????????????????????????????? | | ?????????????????????????????????????????????????? | | ?????????????????????????????????????????????????? | | ????????????????????????????#????????????????????? | | ?????????????????????????? #????????????????????? | | ????????????????????????? +????????????????????? | | ????????????????????????? #????????????????????? | | ???????????????????????? #????????????????????? | | ???????????????????????? #????????????????????? | | ??????????????????????? #????????????????????? | | #####+#####+#######+### #????????????????????? | | #????????????????????? | | +????????????????????? | | [! #????????????????????? | | ! #????????????????????? | | #????????????????????? | | [%#####/######s########?????????????????????? | | =" ## s #?????????????????????? | | """ # ## s !#?????????????????????? | | """ # """" ## #?????????????????????? | | """ # """" ## !! #?????????????????????? | | # """" ## #?????????????????????? | | # """" ## @ #?????????????????????? | | ## # """" ## #?????????????????????? | | ?# # """" ## #?????????????????????? | | ## # ""??? ## #?????????????????????? | | # # ??? ########+##?????????????????????? | | #T # ???? #???????????????????????????????? | | ## # ?????????????????????????????????????? | | ## # ?????????????????????????????????????? | | # # ]?????????????????????????????????????? | | # ###########???????????????????????????????? | | # ???????????????????????????? | | + ???????????????????????????? | | # """ """ """ """?????????????????????????????? | | # """ """ """?????????????????????????????????? | | # """ """ """?????????????????????????????????? | | # ????????????????????????????? | | ## ????????????????????????????? | | ????????????????????????????? | | ######?????????????????????????????? | | #??????????????????????????????????? | | #??????????????????????????????????? | | #??????????????????????????????????? | | ###+#######+###??????????????????????????????????? | | ??????????? ????????????????????????????????????? | | ???????????? ???????????????????????????????????? | +----------------------------------------------------+ Best States ------------- Heat Dissipation 37 Energy Generation 18 Energy Capacity 660 Matter Stores 300 Matter Capacity 300 Sight Range 21 Terrain Scan Range 20 Terrain Scan Density 110 Core Shielding 20 Evasion (%) 55 Targeting Accuracy 5 Offensive Hacking 10 Defensive Hacking 12 Item Schematics ----------------- None Robot Schematics ------------------ None Fabricated ------------ Nothing Repaired ---------- Nothing Studied --------- None Alien Tech Used ----------------- None Achievements -------------- None Challenges ------------ None Game ------ Seed AntigravHybridPerforator Manual? 0 Play Time 00:36:13 Cumulative 204.2 hours Start 2026.09.08 @ 23:36:56 End 2026.09.09 @ 00:18:42 Sessions 1 Manual Loads 0 Difficulty Rogue Special Mode None Game No. 398 Rogue 398 Adventurer 0 Explorer 0 Win Type - Total 2 Types 2/0/0/0/0/0/0/0/0/0 Lore% 61 Gallery% 62 Achievement% 48 Wizard Run 0 Options --------- Layout 2 ASCII 0 Keyboard 1 Movement Arrows Keybinds 0 Fullscreen 1 Font 24/Smallcaps Map View 50x44 Zoom Use 0% Tactical HUD 1 Map Filters NONE Filters NONE Steam 1 RUN: ec0aa8ef-d63f-43ae-8344-780e0fdc23a1